bitfinex-derivatives/quotes_ETHF0:USTF0_20250426
["timestamp","ask_amount","ask_price","bid_price","bid_amount"]
[1745679068993,5.308,1793.8,1793.7,2.72725]
[1745679069194,4.0663,1794.1,1793.7,2.72725]
[1745679069195,4.32222,1794.1,1793.7,6.6126]
[1745679069493,4.32209,1794.3,1794.1,1.1144]
[1745679069686,1.11429,1794.3,1794.2,0.8683]
[1745679069888,1.11429,1794.3,1794.2,3.3419]
[1745679071081,2.69699,1794.3,1794.2,3.3419]
[1745679071493,2.69699,1794.3,1794.1,3.2078]
[1745679071494,1.11434,1794.2,1794.1,3.2078]
[1745679071695,1.11448,1794.0,1793.8,7.73087]
[1745679071892,1.11448,1794.0,1793.9,1.691]
[1745679072591,2.69709,1794.2,1793.9,2.80552]
[1745679073092,2.69708,1794.2,1794.0,1.691]
[1745679073294,2.69708,1794.2,1794.0,2.80546]
[1745679073490,2.69708,1794.2,1794.1,0.8627]
[1745679073684,2.69708,1794.2,1794.1,2.4507]
[1745679074089,8.00508,1794.2,1794.1,2.4507]
[1745679074290,5.308,1794.2,1794.1,2.4507]
[1745679074490,5.308,1794.2,1794.1,6.7729]
[1745679075191,1.11425,1794.4,1794.2,1.11433]
[1745679075394,1.11425,1794.4,1794.3,0.8666]
[1745679075693,1.11425,1794.4,1794.3,2.4546]
[1745679076596,0.7982,1794.5,1794.3,2.4546]
[1745679076797,1.91235,1794.5,1794.4,2.4456]
[1745679077195,7.22035,1794.5,1794.4,2.4456]
[1745679077900,5.308,1794.5,1794.4,3.55982]
[1745679078099,6.42215,1794.5,1794.4,2.4456]
[1745679078299,1.11415,1794.5,1794.4,2.4456]
[1745679080598,1.1143,1794.3,1794.1,4.32218]
[1745679080799,1.1143,1794.3,1794.2,3.2713]
[1745679081392,1.9692,1794.3,1794.2,3.2713]
[1745679084995,1.1144,1794.1,1794.0,3.692]
[1745679085202,1.11447,1794.0,1793.9,6.4877]
[1745679085401,2.75387,1794.0,1793.9,3.2078]
[1745679086294,8.06187,1794.0,1793.9,3.2078]
[1745679087404,6.9474,1794.0,1793.9,3.2078]
[1745679087604,5.308,1794.0,1793.9,3.9993]
[1745679087804,5.308,1794.0,1793.9,6.82583]
[1745679088195,1.11443,1794.1,1793.9,6.82583]
[1745679088396,1.11443,1794.1,1794.0,2.51]
[1745679089101,6.42243,1794.1,1794.0,2.51]
[1745679089606,8.08563,1794.1,1794.0,2.51]
[1745679090597,8.08563,1794.1,1794.0,2.5188]
[1745679091697,8.08563,1794.1,1794.0,0.0088]
[1745679095606,1.11465,1793.7,1793.6,3.2078]
[1745679095799,5.99417,1793.9,1793.4,6.5295]
[1745679095999,1.11476,1793.6,1793.4,6.5295]
[1745679096201,1.11476,1793.6,1793.5,1.5884]
[1745679096602,3.5286,1793.7,1793.5,2.70318]
[1745679096802,3.5286,1793.7,1793.5,1.5884]
[1745679097204,1.11471,1793.6,1793.5,1.5884]
[1745679097409,2.72101,1793.6,1793.5,1.5884]
[1745679098408,1.11478,1793.5,1793.4,4.9411]
[1745679098609,2.82308,1793.5,1793.4,4.9411]
[1745679099315,2.82308,1793.5,1793.4,6.579]
[1745679100019,1.11476,1793.6,1793.4,7.69384]
[1745679100314,1.11476,1793.6,1793.5,2.75268]
[1745679100504,1.11476,1793.6,1793.5,1.6379]
[1745679100910,3.63059,1793.7,1793.5,2.75265]
[1745679101317,3.63059,1793.7,1793.6,1.7425]
[1745679102218,1.11478,1793.5,1793.4,4.9411]
[1745679102517,1.11478,1793.5,1793.4,6.6836]
[1745679102720,1.7394,1793.6,1793.4,7.79842]
[1745679103015,1.92228,1793.7,1793.5,1.11478]
[1745679103216,3.66168,1793.7,1793.5,2.85728]
[1745679103613,3.66168,1793.7,1793.6,1.7425]
[1745679104618,1.11463,1793.8,1793.6,4.9503]
[1745679104819,1.11457,1793.9,1793.7,1.11462]
[1745679105018,1.11457,1793.9,1793.8,0.8213]
[1745679105217,1.6921,1794.0,1793.8,4.0291]
[1745679105517,2.80657,1794.0,1793.9,1.6268]
[1745679105923,1.11447,1794.0,1793.9,1.6268]
[1745679107719,2.74697,1794.0,1793.9,1.6268]
[1745679111326,1.11453,1793.9,1793.8,4.0291]
[1745679111626,1.11453,1793.9,1793.8,5.6688]
[1745679113322,1.1145,1794.0,1793.8,5.6688]
[1745679113525,1.1145,1794.0,1793.9,1.7164]
[1745679118631,2.4066,1794.1,1793.9,1.7164]
[1745679118824,3.52105,1794.1,1793.9,2.83091]
[1745679119330,3.52105,1794.1,1794.0,1.733]
[1745679119531,3.52105,1794.1,1794.0,2.5221]
[1745679121025,3.52105,1794.1,1794.0,1.733]
[1745679121329,8.82905,1794.1,1794.0,1.733]
[1745679123336,1.11453,1793.9,1793.8,4.0291]
[1745679123927,1.11453,1793.9,1793.8,5.7381]
[1745679124127,1.11453,1793.9,1793.8,6.85269]
[1745679124429,1.11453,1793.9,1793.8,5.7381]
[1745679125335,2.79853,1793.9,1793.8,5.7381]
[1745679125830,2.79853,1793.9,1793.6,0.8684]
[1745679125831,1.11465,1793.7,1793.6,0.8684]
[1745679126336,1.11465,1793.7,1793.6,2.4562]
[1745679126635,2.84295,1793.7,1793.6,2.4562]
[1745679127028,1.7283,1793.7,1793.6,2.4562]
[1745679127233,1.7283,1793.7,1793.6,3.57091]
[1745679127433,0.8222,1794.0,1793.6,2.4562]
[1745679127635,3.3987,1794.0,1793.7,5.91023]
[1745679127835,4.51321,1794.0,1793.8,2.4297]
[1745679128030,3.3987,1794.0,1793.9,4.7956]
[1745679128237,3.69097,1794.0,1793.9,5.6696]
[1745679128436,0.8625,1794.2,1793.9,5.6696]
[1745679128635,4.8053,1794.3,1794.0,1.6065]
[1745679128938,4.8053,1794.3,1794.1,1.93689]
[1745679129139,4.8053,1794.3,1794.2,1.6065]
[1745679129438,4.8053,1794.3,1794.2,2.4786]
[1745679129635,5.94646,1794.4,1794.2,3.59294]
[1745679129836,5.94646,1794.4,1794.3,1.6065]
[1745679130238,2.7519,1794.5,1794.3,1.6065]
[1745679130537,2.7519,1794.5,1794.4,0.8225]
[1745679130742,4.3763,1794.5,1794.4,0.8225]
[1745679131134,9.6843,1794.5,1794.4,0.8225]
[1745679134136,9.6843,1794.5,1794.4,2.4242]
[1745679135234,7.7806,1794.5,1794.4,2.4242]
[1745679135434,5.308,1794.5,1794.4,2.4242]
[1745679135628,1.11394,1794.9,1794.4,7.4242]
[1745679135832,1.11394,1794.9,1794.7,3.2078]
[1745679136040,1.11394,1794.9,1794.8,2.4555]
[1745679136434,2.77914,1794.9,1794.8,2.4555]
[1745679137137,1.11405,1794.7,1794.5,5.15421]
[1745679137335,1.11405,1794.7,1794.6,2.4555]
[1745679137538,1.6652,1794.8,1794.5,3.2078]
[1745679137539,1.11409,1794.6,1794.5,3.2078]
[1745679137835,1.11415,1794.5,1794.4,3.688]
[1745679138041,1.11428,1794.3,1794.2,6.5657]
[1745679138537,1.11428,1794.3,1794.2,5.7334]
[1745679139332,1.11446,1794.1,1794.0,3.2078]
[1745679140034,2.75666,1794.1,1794.0,3.2078]
[1745679140442,1.1143,1794.3,1794.0,4.32227]
[1745679140639,2.7304,1794.3,1794.0,6.73107]
[1745679140834,2.7304,1794.3,1794.1,1.618]
[1745679141036,1.94356,1794.4,1794.1,2.7324]
[1745679141241,1.92743,1794.6,1794.3,4.32206]
[1745679141436,4.8239,1794.7,1794.4,1.905]
[1745679141645,3.2078,1794.7,1794.4,3.2412]
[1745679141943,3.2078,1794.7,1794.4,4.35537]
[1745679141944,4.32185,1794.7,1794.4,4.35537]
[1745679142144,4.32185,1794.7,1794.5,1.618]
[1745679142344,1.11409,1794.6,1794.5,1.618]
[1745679143844,2.83149,1794.6,1794.5,1.618]
[1745679144844,3.63639,1794.6,1794.5,1.618]
[1745679145643,3.63639,1794.6,1794.4,1.6232]
[1745679145644,1.11415,1794.5,1794.4,1.6232]
[1745679145845,2.83155,1794.5,1794.4,1.6232]
[1745679146344,1.11434,1794.2,1794.1,3.2078]
[1745679146540,1.11434,1794.2,1794.1,4.0803]
[1745679146744,1.11434,1794.2,1794.1,5.8232]
[1745679146941,3.53282,1794.3,1794.1,6.9376]
[1745679147139,2.4185,1794.3,1794.2,2.6023]
[1745679147447,3.53278,1794.3,1794.2,2.6023]
[1745679147845,3.53278,1794.3,1794.2,3.71664]
[1745679148045,3.53278,1794.3,1794.2,2.6023]
[1745679150050,1.11434,1794.2,1794.1,3.2078]
[1745679150250,2.75224,1794.2,1794.1,3.2078]
[1745679150547,1.11434,1794.2,1794.1,4.855]
[1745679151247,2.4428,1794.3,1794.1,5.9694]
[1745679151447,3.5571,1794.3,1794.2,1.6472]
[1745679154554,1.11434,1794.2,1794.1,3.2078]
[1745679154754,2.70444,1794.2,1794.1,4.8221]
[1745679155654,2.70444,1794.2,1794.1,3.2078]
[1745679156156,2.70444,1794.2,1794.1,4.933]
[1745679159342,2.70444,1794.2,1794.1,3.2078]
[1745679162254,1.1144,1794.1,1794.0,2.4513]
[1745679162649,5.99386,1794.1,1793.5,3.2078]
[1745679162855,1.11465,1793.7,1793.6,1.6436]
[1745679164652,2.81157,1793.9,1793.7,1.11464]
[1745679164854,2.81157,1793.9,1793.8,1.6436]
[1745679165762,2.81157,1793.9,1793.8,3.3142]
[1745679167058,1.11471,1793.6,1793.5,3.2078]
[1745679167360,1.11466,1793.7,1793.5,5.91835]
[1745679167562,1.11466,1793.7,1793.6,3.2664]
[1745679167763,1.66,1793.8,1793.6,3.2664]
[1745679167955,1.11457,1793.9,1793.7,1.6528]
[1745679168156,1.11457,1793.9,1793.7,2.76745]
[1745679168662,1.11457,1793.9,1793.8,1.6528]
[1745679172363,1.11465,1793.7,1793.6,1.6706]
[1745679172563,1.11465,1793.7,1793.6,0.8738]
[1745679173262,1.94425,1793.7,1793.6,0.8738]
[1745679173460,1.94425,1793.7,1793.6,2.4742]
[1745679175668,0.8296,1793.7,1793.6,2.4742]
[1745679175862,1.94425,1793.7,1793.6,2.4742]
[1745679177067,1.11462,1793.8,1793.6,3.5889]
[1745679177273,1.11462,1793.8,1793.7,1.6403]
[1745679177567,2.69948,1793.9,1793.7,5.96273]
[1745679177867,2.69948,1793.9,1793.8,2.434]
[1745679179761,2.69948,1793.9,1793.8,1.6403]
[1745679181970,1.11465,1793.7,1793.6,1.746]
[1745679183470,1.11461,1793.8,1793.6,4.58921]
[1745679183672,1.11461,1793.8,1793.6,3.4745]
[1745679183972,1.11461,1793.8,1793.7,1.7285]
[1745679186276,4.80245,1794.1,1793.7,9.9363]
[1745679186568,1.11445,1794.1,1793.9,1.11448]
[1745679186769,1.11445,1794.1,1794.0,1.6289]
[1745679186968,1.11445,1794.1,1794.0,3.3189]
[1745679187372,1.11459,1793.8,1793.7,6.8958]
[1745679187669,1.11459,1793.8,1793.7,7.7319]
[1745679187858,1.11457,1793.9,1793.7,8.84654]
[1745679188063,3.63161,1794.0,1793.7,8.84654]
[1745679188469,1.11453,1793.9,1793.7,8.84654]
[1745679188667,1.11453,1793.9,1793.8,2.5196]
[1745679189173,2.78659,1793.8,1793.6,3.2078]
[1745679189382,2.3945,1793.7,1793.6,3.2078]
[1745679189559,4.31605,1793.7,1793.6,3.2078]
[1745679193175,4.31605,1793.7,1793.5,1.6514]
[1745679193176,1.11471,1793.6,1793.5,1.6514]
[1745679193366,2.72721,1793.6,1793.5,1.6514]
[1745679193767,1.11484,1793.4,1793.3,4.8735]
[1745679194072,1.11484,1793.4,1793.3,6.4574]
[1745679194771,2.72732,1793.5,1793.3,6.4574]
[1745679194971,2.72732,1793.5,1793.4,1.5839]
[1745679195171,1.6125,1793.5,1793.4,1.5839]
[1745679195371,2.72728,1793.5,1793.4,1.5839]
[1745679196369,1.11478,1793.5,1793.4,1.5839]
[1745679197769,1.11484,1793.4,1793.3,3.2078]
[1745679197970,3.49474,1793.4,1793.3,3.2078]
[1745679198377,1.1149,1793.3,1793.2,1.7303]
[1745679198677,2.7402,1793.3,1793.2,1.7303]
[1745679199676,2.7402,1793.3,1793.2,4.9381]
[1745679201578,2.7402,1793.3,1793.2,1.7303]
[1745679201780,2.7402,1793.3,1793.2,4.9381]
[1745679201975,3.2078,1793.7,1793.2,6.05302]
[1745679202178,1.11484,1793.4,1793.3,1.6404]
[1745679206479,1.1149,1793.3,1793.2,3.2078]
[1745679206684,3.5797,1793.3,1793.2,3.2078]
[1745679206876,3.5797,1793.3,1793.2,4.8713]
[1745679207682,1.11496,1793.2,1793.1,1.6144]
[1745679207982,2.78196,1793.2,1793.1,1.6144]
[1745679208180,2.78196,1793.2,1793.1,3.2133]
[1745679209186,1.11502,1793.1,1793.0,3.2078]
[1745679209482,2.78202,1793.1,1793.0,3.2078]
[1745679209683,2.78202,1793.1,1793.0,45.6067]
[1745679210081,1.11502,1793.1,1793.0,45.6067]
[1745679211786,2.72219,1793.2,1793.0,46.72177]
[1745679211988,2.72219,1793.2,1793.1,3.2772]
[1745679212183,5.575,1795.1,1793.8,3.2078]
[1745679212383,2.72098,1795.2,1794.6,1.11406]
[1745679212586,2.72094,1795.2,1795.0,3.2078]
[1745679212884,5.93744,1795.2,1795.0,3.2078]
[1745679213085,4.82369,1795.2,1795.0,3.2078]
[1745679213488,4.82369,1795.2,1795.1,1.597]
[1745679218794,4.82369,1795.2,1795.1,2.71078]
[1745679218989,4.82369,1795.2,1795.1,1.597]
[1745679219790,4.82369,1795.2,1795.1,2.71078]
[1745679221187,4.82369,1795.2,1795.1,1.597]
[1745679221387,4.82369,1795.2,1795.1,2.71078]
[1745679221589,4.82369,1795.2,1795.1,1.597]
[1745679222794,4.82369,1795.2,1795.1,2.71078]
[1745679225592,9.82369,1795.2,1795.0,3.2078]
[1745679225788,1.11391,1794.9,1794.8,3.2078]
[1745679226295,4.3304,1794.9,1794.8,3.2078]
[1745679226793,3.21649,1794.9,1794.8,3.2078]
[1745679227189,4.3304,1794.9,1794.8,3.2078]
[1745679228488,5.2922,1795.2,1794.8,3.2078]
[1745679228694,5.2922,1795.2,1794.5,42.3951]
[1745679228695,4.82369,1795.2,1795.0,3.2078]
[1745679229296,1.11378,1795.1,1795.0,3.2078]
[1745679229495,2.71958,1795.1,1795.0,3.2078]
[1745679233497,1.6058,1795.1,1795.0,3.2078]
[1745679233698,1.6058,1795.1,1795.0,4.9094]
[1745679233894,2.71958,1795.1,1795.0,4.9094]
[1745679234092,1.6058,1795.1,1795.0,4.9094]
[1745679234799,2.71958,1795.1,1795.0,4.9094]
[1745679242305,2.71958,1795.1,1795.0,5.32475932]
[1745679242795,2.71958,1795.1,1795.0,5.32476371]
[1745679243105,2.71958,1795.1,1795.0,4.9094]
[1745679243306,2.71958,1795.1,1795.0,5.32477946]
[1745679244609,2.71958,1795.1,1795.0,6.06101761]
[1745679245105,2.71958,1795.1,1795.0,6.06108018]
[1745679245306,2.71958,1795.1,1795.0,6.06108548]
[1745679245507,2.71958,1795.1,1795.0,6.0609795]
[1745679246009,2.71958,1795.1,1795.0,5.3248538]
[1745679246200,2.71958,1795.1,1795.0,6.06098759]
[1745679246706,5.93607,1795.1,1795.0,6.06098759]
[1745679246899,5.93607,1795.1,1795.0,5.32481999]
[1745679247299,5.93607,1795.1,1795.0,6.06113795]
[1745679247500,4.33027,1795.1,1795.0,6.06113795]
[1745679248706,4.33027,1795.1,1795.0,6.06152303]
[1745679249904,4.001,1798.3,1795.9,3.2078]
[1745679250107,4.001,1798.3,1795.3,5.56816]
[1745679250108,3.2078,1797.9,1797.4,3.2078]
[1745679250307,1.11211,1797.8,1797.7,3.2078]
[1745679250606,0.44091742,1798.3,1797.7,3.68536518]
[1745679250811,0.44091742,1798.3,1797.2,4.001]
[1745679250812,2.69368,1798.1,1798.0,3.2078]
[1745679251194,2.69368,1798.1,1797.2,4.001]
[1745679251195,1.1121,1797.9,1797.2,5.11345]
[1745679251400,1.11205,1797.9,1797.8,3.2078]
[1745679251602,1.11217,1797.7,1797.6,3.2078]
[1745679251803,7.2068,1798.1,1797.6,3.2078]
[1745679252109,1.11205,1797.9,1797.6,3.2078]
[1745679252406,1.11212,1797.8,1797.6,3.2078]
[1745679253107,1.11209,1797.9,1797.6,3.2078]
[1745679253404,1.11217,1797.7,1797.6,3.2078]
[1745679253605,1.11214,1797.8,1797.6,3.2078]
[1745679253807,7.2068,1798.1,1797.6,3.2078]
[1745679254008,1.11214,1797.8,1797.6,3.2078]
[1745679254506,1.11217,1797.7,1797.6,3.2078]
[1745679255013,6.11217,1797.7,1797.6,3.2078]
[1745679257008,1.11217,1797.7,1797.6,3.2078]
[1745679259313,2.78084,1797.5,1797.2,3.2078]
[1745679259612,1.11267,1796.9,1796.8,3.2078]
[1745679260001,1.11279,1796.7,1796.6,4.8881]
[1745679262712,1.11279,1796.7,1796.6,3.2078]
[1745679263411,2.78223,1796.6,1796.2,3.2078]
[1745679263603,1.11304,1796.3,1796.2,3.2078]
[1745679264904,3.2078,1796.7,1796.2,3.2078]
[1745679265105,1.11294,1796.5,1796.3,1.6346]
[1745679265305,3.997,1796.8,1796.4,3.2078]
[1745679265306,1.11288,1796.6,1796.4,3.2078]
[1745679265506,1.11283,1796.7,1796.5,1.5838]
[1745679265811,1.11285,1796.6,1796.5,1.5838]
[1745679266006,1.11283,1796.7,1796.5,1.5838]
[1745679266206,9.0778,1796.9,1796.5,1.5838]
[1745679266412,1.11281,1796.7,1796.5,1.5838]
[1745679267115,1.11281,1796.7,1796.6,3.2078]
[1745679267116,1.11279,1796.7,1796.6,3.2078]
[1745679267904,1.11285,1796.6,1796.5,1.5838]
[1745679268212,1.11291,1796.5,1796.4,3.2078]
[1745679268415,2.79291,1796.5,1796.4,3.2078]
[1745679270809,1.11304,1796.3,1796.2,1.7172]
[1745679271015,1.11304,1796.3,1796.2,4.925]
[1745679271515,1.11302,1796.4,1796.2,9.925]
[1745679271717,1.11302,1796.4,1796.2,4.925]
[1745679273715,5.5813,1796.7,1796.2,4.925]
[1745679273716,1.11304,1796.3,1796.2,4.925]
[1745679279303,1.11304,1796.3,1796.2,5.67689821]
[1745679280514,1.11304,1796.3,1796.2,4.925]
[1745679282114,1.11304,1796.3,1796.2,5.67700572]
[1745679283817,1.11304,1796.3,1796.2,4.925]
[1745679284410,1.11304,1796.3,1796.2,5.35120682]
[1745679284610,1.11304,1796.3,1796.2,6.07691806]
[1745679286121,1.11304,1796.3,1796.2,6.8097826]
[1745679286321,1.11304,1796.3,1796.2,6.07691806]
[1745679287119,1.11304,1796.3,1796.2,6.81037809]
[1745679288324,1.5918,1796.5,1796.2,6.81157589]
[1745679288518,2.70471,1796.5,1796.4,3.2078]
[1745679288725,2.70471,1796.5,1796.4,4.36091586]
[1745679289122,2.70471,1796.5,1796.4,5.09603585]
[1745679290123,2.70471,1796.5,1796.4,4.36091586]
[1745679292125,2.70471,1796.5,1796.4,4.36191257]
[1745679293820,2.70471,1796.5,1796.4,4.36202954]
[1745679295522,2.70471,1796.5,1796.4,3.93349283]
[1745679295725,2.70471,1796.5,1796.4,4.36210728]
[1745679297928,2.70471,1796.5,1796.4,5.09855418]
[1745679298726,1.11322,1796.0,1795.9,0.7959]
[1745679298921,3.63795,1796.4,1795.9,3.2078]
[1745679299118,1.11319,1796.1,1795.9,3.2078]
[1745679300121,1.11319,1796.1,1796.0,1.5982]
[1745679301627,1.11319,1796.1,1796.0,4.806]
[1745679302332,1.11319,1796.1,1796.0,1.5982]
[1745679302531,1.11319,1796.1,1796.0,4.806]
[1745679304034,3.984,1796.4,1796.0,10.91921]
[1745679304225,1.11298,1796.4,1796.3,3.2078]
[1745679306532,0.8222,1796.6,1796.3,3.2078]
[1745679306740,2.79541,1796.7,1796.5,3.2078]
[1745679306928,1.11285,1796.6,1796.5,3.2078]
[1745679307129,2.79545,1796.6,1796.5,4.856]
[1745679308331,1.6826,1796.6,1796.5,4.856]
[1745679309232,2.79545,1796.6,1796.5,4.856]
[1745679309535,1.6826,1796.6,1796.5,4.856]
[1745679309734,2.79545,1796.6,1796.5,4.856]
[1745679312947,1.6826,1796.6,1796.5,4.856]
[1745679313445,1.6826,1796.6,1796.3,7.1918]
[1745679313653,1.11298,1796.4,1796.3,3.984]
[1745679314143,2.74208,1796.4,1796.1,6.04882]
[1745679314344,2.74208,1796.4,1796.2,1.6874]
[1745679314740,1.11304,1796.3,1796.2,1.6874]
[1745679316148,2.74211,1796.4,1796.2,1.6874]
[1745679316541,1.11304,1796.3,1796.2,1.6874]
[1745679318647,1.11304,1796.3,1796.2,4.8952]
[1745679319845,1.11322,1796.0,1795.9,0.8016]
[1745679320044,1.11329,1795.9,1795.8,3.2078]
[1745679320247,1.11335,1795.8,1795.7,0.8494]
[1745679320442,2.74693,1795.9,1795.7,2.5081]
[1745679320750,1.11333,1795.9,1795.8,3.2078]
[1745679321051,1.6336,1796.1,1795.8,4.8665]
[1745679321243,1.11313,1796.2,1795.9,2.77197]
[1745679321443,1.11313,1796.2,1796.0,1.6587]
[1745679322248,1.11308,1796.3,1796.0,2.77192]
[1745679322446,3.2078,1796.4,1796.0,2.77192]
[1745679322742,1.11312,1796.2,1796.1,1.6587]
[1745679323244,1.11307,1796.3,1796.1,4.8665]
[1745679323642,2.7727,1796.4,1796.2,1.6371]
[1745679323950,1.11304,1796.3,1796.2,1.6371]
[1745679329951,4.44219,1796.4,1795.9,4.32108]
[1745679330143,1.11318,1796.1,1795.9,5.92658]
[1745679330347,1.11318,1796.1,1796.0,1.6055]
[1745679332451,1.11322,1796.0,1795.9,3.2078]
[1745679333252,1.11322,1796.0,1795.9,4.7829]
[1745679333848,3.50651,1796.1,1795.9,4.7829]
[1745679334150,3.50651,1796.1,1796.0,1.5751]
[1745679334455,1.11322,1796.0,1795.9,3.2078]
[1745679334654,2.71012,1796.0,1795.9,4.7829]
[1745679336553,1.61667877,1796.0,1795.9,4.7829]
[1745679342958,1.61667877,1796.0,1795.9,5.89619]
[1745679342959,0.50345877,1796.0,1795.9,5.89619]
[1745679343160,1.61667877,1796.0,1795.9,4.7829]
[1745679344761,1.61667877,1796.0,1795.9,5.89619]
[1745679345062,1.61667877,1796.0,1795.9,4.7829]
[1745679346862,0.50345877,1796.0,1795.9,4.7829]
[1745679347063,1.61667877,1796.0,1795.9,4.7829]
[1745679347864,1.61667877,1796.0,1795.9,5.89619]
[1745679348469,0.50345877,1796.0,1795.9,5.89619]
[1745679348767,1.61667877,1796.0,1795.9,4.7829]
[1745679349063,1.61667877,1796.0,1795.9,5.89619]
[1745679349266,0.50345877,1796.0,1795.9,5.89619]
[1745679351166,1.61667877,1796.0,1795.9,5.89619]
[1745679352557,0.50345877,1796.0,1795.9,4.7829]
[1745679352761,0.50345877,1796.0,1795.9,5.89619]
[1745679356165,0.50345877,1796.0,1795.9,11.20419]
[1745679356363,2.72192,1796.4,1796.2,1.11306]
[1745679356565,2.72192,1796.4,1796.3,1.7442]
[1745679356865,0.099,1796.8,1796.3,1.7442]
[1745679357067,2.82856,1796.8,1796.6,4.32062]
[1745679357265,2.82856,1796.8,1796.7,1.6435]
[1745679357971,1.11279,1796.7,1796.6,3.2078]
[1745679358174,2.82859,1796.7,1796.6,3.2078]
[1745679358871,2.82859,1796.7,1796.6,4.8513]
[1745679360268,2.82859,1796.7,1796.6,3.2078]
[1745679361170,1.113,1796.4,1796.2,4.32089]
[1745679361369,1.11304,1796.3,1796.2,3.2078]
[1745679361573,2.83714,1796.3,1796.2,3.2078]
[1745679362576,1.7241,1796.3,1796.2,4.3209]
[1745679362777,1.7241,1796.3,1796.2,5.9618]
[1745679364077,2.83714,1796.3,1796.2,4.8487]
[1745679364374,2.83714,1796.3,1796.2,3.2078]
[1745679369879,2.83714,1796.3,1796.2,4.9259]
[1745679370080,2.83714,1796.3,1796.2,3.2078]
[1745679372481,1.11313,1796.2,1796.0,8.7599]
[1745679372683,2.79153,1796.2,1796.1,1.7204]
[1745679380085,8.23297,1796.6,1796.1,1.7204]
[1745679380382,1.11306,1796.3,1796.1,2.83356]
[1745679380583,1.11306,1796.3,1796.2,1.6155]
[1745679381185,1.11306,1796.3,1796.2,4.8233]
[1745679383988,1.11301,1796.4,1796.2,4.8233]
[1745679384187,1.11301,1796.4,1796.3,1.6953]
[1745679387279,1.11304,1796.3,1796.2,3.2078]
[1745679387483,2.75054,1796.3,1796.2,3.2078]
[1745679390900,2.75054,1796.3,1796.2,4.9445]
[1745679393201,1.11304,1796.3,1796.2,4.9445]
[1745679398708,3.76,1796.6,1796.2,4.9445]
[1745679398906,1.11298,1796.4,1796.3,2.492]
[1745679399906,1.11298,1796.4,1796.3,1.6481]
[1745679400105,1.6178,1796.5,1796.2,3.2078]
[1745679400106,1.11304,1796.3,1796.2,3.2078]
[1745679400307,2.74164,1796.3,1796.2,3.2078]
[1745679400707,2.74164,1796.3,1796.2,4.9554]
[1745679401612,2.74164,1796.3,1796.2,1.7476]
[1745679401814,2.74164,1796.3,1796.2,4.9554]
[1745679403411,1.11339,1795.8,1795.5,44.51]
[1745679403713,1.11329,1795.9,1795.8,3.2078]
[1745679404011,1.11335,1795.8,1795.7,5.6264]
[1745679405607,1.5984,1796.0,1795.5,3.2078]
[1745679405806,1.11339,1795.8,1795.7,4.8514]
[1745679406010,1.11332,1795.9,1795.7,4.8514]
[1745679406209,1.11332,1795.9,1795.8,1.6283]
[1745679409915,1.11332,1795.9,1795.8,4.8361]
[1745679410820,1.21232,1795.9,1795.8,4.8361]
[1745679413317,0.099,1795.9,1795.8,5.94945]
[1745679413517,0.099,1795.9,1795.8,4.8361]
[1745679413917,0.099,1795.9,1795.8,5.94945]
[1745679414324,1.21229,1795.9,1795.8,4.8361]
[1745679418631,0.099,1795.9,1795.8,5.94945]
[1745679420129,0.099,1796.0,1795.9,1.11329]
[1745679420333,0.099,1796.0,1795.9,2.84649]
[1745679421125,0.099,1796.0,1795.9,8.15449]
[1745679421633,0.099,1796.0,1795.9,48.95449]
[1745679422235,1.21222,1796.0,1795.9,47.8412]
[1745679422937,1.21222,1796.0,1795.9,48.95449]
[1745679423136,1.21222,1796.0,1795.9,42.5332]
[1745679423342,1.11329,1795.9,1795.8,3.2078]
[1745679423639,2.68869,1795.9,1795.8,4.8603]
[1745679424135,3.54299,1795.9,1795.8,4.8603]
[1745679425338,3.64199,1795.9,1795.8,4.8603]
[1745679426231,2.5287,1795.9,1795.8,4.8603]
[1745679426431,2.5287,1795.9,1795.8,5.97365]
[1745679426634,0.099,1795.9,1795.8,5.97365]
[1745679433037,0.099,1795.9,1795.8,10.97365]
[1745679433237,0.099,1795.9,1795.8,16.28165]
[1745679433542,1.11312,1796.2,1796.0,1.1132]
[1745679433744,1.11312,1796.2,1796.1,4.8615]
[1745679433941,1.11312,1796.2,1796.1,6.5198]
[1745679434442,2.69292,1796.2,1796.1,6.5198]
[1745679435344,2.69292,1796.2,1796.1,3.2078]
[1745679435639,2.69295,1796.2,1796.0,41.91321]
[1745679435840,1.11316,1796.1,1796.0,42.4583]
[1745679436042,2.72676,1796.1,1796.0,42.4583]
[1745679440646,1.6136,1796.1,1796.0,42.4583]
[1745679443046,1.6136,1796.1,1796.0,43.57152]
[1745679443250,1.9705,1796.3,1796.0,43.57152]
[1745679443549,3.6072,1796.3,1796.1,4.8647]
[1745679443850,1.1131,1796.2,1796.1,4.8647]
[1745679444052,2.7498,1796.2,1796.1,4.8647]
[1745679444647,1.97045,1796.3,1796.1,6.80256]
[1745679444950,1.97045,1796.3,1796.2,1.6569]
[1745679445343,3.68995,1796.3,1796.2,1.6569]
[1745679445747,1.97045,1796.3,1796.2,1.6569]
[1745679449356,3.65915,1796.3,1796.2,1.6569]
[1745679454364,1.1131,1796.2,1796.1,4.0325]
[1745679454666,2.7944,1796.2,1796.1,0.8247]
[1745679455966,2.7944,1796.2,1796.1,4.0325]
[1745679456765,2.7944,1796.2,1796.1,0.8247]